bitfinex/quotes_ETHUSD_20250319
["timestamp","ask_amount","ask_price","bid_price","bid_amount"]
[1742378719428,4.45876509,1951.3,1951.2,13.46910035]
[1742378719637,4.45876509,1951.3,1951.2,8.34405035]
[1742378720128,4.45876509,1951.3,1951.2,8.8210311]
[1742378721233,4.45876509,1951.3,1951.2,13.9460811]
[1742378721930,4.45876509,1951.3,1951.2,8.8210311]
[1742378722339,10.8599216,1951.3,1951.2,3.9540311]
[1742378722520,10.8599216,1951.3,1951.2,0.9540311]
[1742378722711,10.8599216,1951.3,1951.2,0.47705035]
[1742378723032,0.7555,1950.9,1950.6,0.7957321]
[1742378723246,4.45876509,1950.7,1950.6,13.7933321]
[1742378723737,4.45876509,1950.7,1950.6,5.91788389]
[1742378723919,4.45876509,1950.7,1950.6,4.872]
[1742378724693,4.45876509,1950.7,1950.4,3.0]
[1742378724900,5.12614,1950.8,1950.5,4.872]
[1742378725131,6.226888,1950.8,1950.5,4.872]
[1742378725438,0.06408498,1950.7,1950.5,4.872]
[1742378725613,6.226888,1950.8,1950.5,4.872]
[1742378726138,4.45876509,1950.6,1950.5,4.872]
[1742378727727,4.45876509,1950.6,1950.3,17.718]
[1742378727728,8.91753018,1950.6,1950.3,17.718]
[1742378727916,0.89175302,1950.5,1950.4,3.0]
[1742378728123,5.12691,1950.5,1950.4,3.0]
[1742378728527,11.05013,1950.6,1950.4,3.0]
[1742378728929,8.9816225,1950.5,1950.3,17.718]
[1742378729149,4.45876509,1950.4,1950.3,17.718]
[1742378729915,8.91753018,1950.4,1950.3,17.718]
[1742378730259,4.45876509,1950.4,1950.3,17.718]
[1742378730426,8.91753018,1950.4,1950.3,17.718]
[1742378732161,4.45876509,1950.4,1950.3,17.718]
[1742378733918,4.45876509,1950.4,1950.3,22.84541]
[1742378734255,4.45876509,1950.4,1950.3,23.61201]
[1742378734812,4.45876509,1950.4,1950.3,17.718]
[1742378735013,4.9810216,1950.4,1950.3,17.718]
[1742378736652,4.45876509,1950.4,1950.3,22.84541]
[1742378737017,4.45876509,1950.4,1950.3,23.60971]
[1742378737451,4.45876509,1950.4,1950.3,5.89171]
[1742378737659,4.45876509,1950.4,1950.3,8.89171]
[1742378740134,4.45876509,1950.4,1950.3,9.93718555]
[1742378741565,4.45876509,1950.5,1950.4,8.12697]
[1742378751584,4.45876509,1950.5,1950.4,3.0]
[1742378751739,4.9866716,1950.5,1950.4,3.0]
[1742378751943,0.75,1950.4,1950.2,4.849]
[1742378752249,4.45876509,1950.3,1950.2,12.97666]
[1742378752671,4.45876509,1950.3,1950.2,7.849]
[1742378752878,4.9796416,1950.3,1950.2,7.849]
[1742378753188,4.9796416,1950.3,1950.2,12.97667]
[1742378753344,4.9796416,1950.3,1950.2,7.849]
[1742378754351,4.9796416,1950.3,1950.2,12.97667]
[1742378755064,4.9796416,1950.3,1950.2,7.849]
[1742378756676,4.9796416,1950.3,1950.2,3.0]
[1742378757385,10.1070716,1950.3,1950.1,3.0]
[1742378757593,4.45876509,1950.2,1950.1,3.0]
[1742378757955,11.35924225,1950.2,1950.1,3.0]
[1742378758170,6.23157225,1950.2,1950.1,3.0]
[1742378760530,11.35924225,1950.2,1950.1,3.0]
[1742378761531,6.23157225,1950.2,1950.1,3.0]
[1742378761689,6.23157225,1950.2,1950.1,8.12794]
[1742378761690,4.45876509,1950.2,1950.1,8.12794]
[1742378761925,4.45876509,1950.2,1950.1,3.0]
[1742378763306,0.8167,1950.1,1950.0,17.724]
[1742378763513,5.27546509,1950.1,1950.0,17.724]
[1742378764075,5.27546509,1950.1,1949.9,4.04054678]
[1742378764276,4.9863116,1950.0,1949.9,4.04054678]
[1742378764510,4.9863116,1950.0,1949.9,3.0]
[1742378773812,10.1145516,1950.0,1949.7,6.13378519]
[1742378774003,4.45876509,1949.8,1949.7,13.97178519]
[1742378775898,4.45876509,1949.8,1949.7,8.84296519]
[1742378776694,5.12911,1949.7,1949.4,17.728]
[1742378777014,4.45876509,1949.5,1949.4,22.563]
[1742378777377,4.45876509,1949.5,1949.4,25.563]
[1742378777779,4.45876509,1949.5,1949.4,30.69278]
[1742378778010,4.45876509,1949.5,1949.4,25.563]
[1742378778417,0.7612,1949.8,1949.4,31.45278]
[1742378778618,0.7612,1949.8,1949.5,10.25882]
[1742378778824,5.12848,1949.9,1949.5,5.12941]
[1742378779608,10.25718,1949.9,1949.5,5.12941]
[1742378779813,1.29874651,1950.0,1949.4,20.728]
[1742378779814,8.91753018,1949.6,1949.4,20.728]
[1742378780016,4.45876509,1949.5,1949.4,20.728]
[1742378781826,4.45876509,1949.5,1949.4,3.0]
[1742378785333,4.45876509,1949.5,1949.0,5.13074]
[1742378785334,5.24706509,1949.5,1949.0,5.13074]
[1742378785625,5.65459651,1949.4,1949.1,8.13056]
[1742378786000,5.65459651,1949.4,1949.0,12.97677]
[1742378786327,4.45876509,1949.1,1949.0,18.10745]
[1742378786628,4.45876509,1949.1,1949.0,12.97668]
[1742378787131,4.45876509,1949.5,1949.3,5.12979]
[1742378787430,0.7682,1949.7,1949.4,5.12965]
[1742378787631,1.42201523,1949.7,1949.4,5.12965]
[1742378788730,4.45876509,1949.5,1949.4,5.12965]
[1742378789437,9.58837509,1949.5,1949.2,8.13028]
[1742378789626,4.45876509,1949.3,1949.2,8.13028]
[1742378790731,4.45876509,1949.3,1949.2,3.0]
[1742378790906,4.9847516,1949.3,1949.2,3.0]
[1742378791636,4.45876509,1949.3,1949.2,8.1303]
[1742378794837,4.45876509,1949.3,1949.2,3.0]
[1742378795131,4.45876509,1949.3,1949.2,8.1303]
[1742378797254,2.67551073,1949.3,1949.2,8.1303]
[1742378803642,5.89251,1949.6,1949.3,5.13004]
[1742378803855,0.589251,1949.5,1949.3,5.13004]
[1742378804663,0.589251,1949.5,1949.2,8.1303]
[1742378804842,2.67551073,1949.3,1949.2,13.26048]
[1742378805043,2.67551073,1949.3,1949.2,8.13018]
[1742378806265,2.67551073,1949.3,1949.2,3.0]
[1742378806469,0.7972,1949.2,1949.1,3.0]
[1742378806765,3.47271073,1949.2,1949.1,3.0]
[1742378806999,3.53684386,1949.2,1949.1,3.0]
[1742378807336,3.47271073,1949.2,1949.1,3.0]
[1742378807537,3.87349202,1949.2,1949.1,3.0]
[1742378809094,3.07629202,1949.2,1949.1,8.13057]
[1742378809386,2.67551073,1949.4,1949.2,10.26049]
[1742378809588,2.67551073,1949.4,1949.2,5.13019]
[1742378810659,2.67551073,1949.3,1949.2,8.13019]
[1742378816894,2.67551073,1949.3,1949.2,3.0]
[1742378817053,3.27473939,1949.3,1949.2,3.0]
[1742378817263,3.21061288,1949.3,1949.2,3.0]
[1742378818052,3.21061288,1949.3,1949.1,5.13044]
[1742378818284,2.67551073,1949.2,1949.1,8.13044]
[1742378820409,2.67551073,1949.4,1949.2,10.2603]
[1742378820593,0.589251,1949.5,1949.3,5.13004]
[1742378820913,0.589251,1949.5,1949.3,5.12993]
[1742378821204,0.7824,1949.6,1949.3,5.12993]
[1742378821408,0.7824,1949.6,1949.4,5.12968]
[1742378821609,2.67551073,1949.5,1949.4,5.12968]
[1742378822409,2.67551073,1949.5,1949.3,5.1299]
[1742378822612,2.67551073,1949.4,1949.3,5.12989]
[1742378824206,2.67551073,1949.4,1949.3,8.12989]
[1742378826415,5.35102146,1949.4,1949.3,8.12989]
[1742378826603,5.88612361,1949.4,1949.3,8.12989]
[1742378826985,5.88612361,1949.4,1949.2,3.0]
[1742378827200,3.45101073,1949.3,1949.2,3.0]
[1742378827413,3.45101073,1949.3,1949.2,8.1303]
[1742378827619,2.67551073,1949.3,1949.2,8.1303]
[1742378829517,2.67551073,1949.3,1949.2,3.0]
[1742378830580,3.27053615,1949.3,1949.2,3.0]
[1742378831077,3.33466669,1949.3,1949.2,3.0]
[1742378831980,3.27053615,1949.3,1949.2,3.0]
[1742378834088,3.27053615,1949.3,1949.1,3.0]
[1742378834285,3.45061073,1949.2,1949.1,3.0]
[1742378834498,2.67551073,1949.2,1949.1,3.0]
[1742378834734,2.67551073,1949.2,1949.1,8.13057]
[1742378838140,2.67551073,1949.2,1949.1,3.0]
[1742378838629,2.67551073,1949.2,1949.1,8.13057]
[1742378840532,2.67551073,1949.2,1949.1,3.0]
[1742378841844,2.67551073,1949.2,1949.1,8.13057]
[1742378842719,2.67551073,1949.2,1949.1,3.0]
[1742378843044,2.67551073,1949.2,1949.1,8.13057]
[1742378845248,2.9430618,1949.2,1949.1,3.0]
[1742378846150,2.67551073,1949.2,1949.1,8.95417]
[1742378846354,7.80378073,1950.0,1949.6,5.12922]
[1742378846557,0.06411455,1949.9,1949.7,5.12897]
[1742378846855,7.80378073,1950.0,1949.7,5.12897]
[1742378847074,0.78037807,1949.9,1949.7,5.12897]
[1742378847260,0.78037807,1949.9,1949.7,5.12882]
[1742378847409,5.12771,1950.2,1949.4,5.6246]
[1742378847410,0.7788,1950.4,1950.1,5.12778]
[1742378847746,4.45738213,1950.2,1949.9,13.75904]
[1742378848050,4.45738213,1950.0,1949.9,7.807]
[1742378848642,9.58558213,1950.0,1949.9,4.807]
[1742378848843,11.13482434,1950.0,1949.9,4.807]
[1742378849532,6.00662434,1950.0,1949.9,4.807]
[1742378849932,4.45738213,1950.0,1949.9,4.807]
[1742378850674,4.45738213,1950.0,1949.8,5.12855]
[1742378850881,4.45738213,1949.9,1949.8,5.12855]
[1742378852253,4.45738213,1950.0,1949.9,5.1284]
[1742378853263,4.45738213,1950.1,1950.0,5.12803]
[1742378853465,4.45738213,1950.2,1950.1,5.12794]
[1742378855148,5.25268213,1950.2,1950.0,7.812]
[1742378855350,4.45738213,1950.1,1950.0,4.812]
[1742378857288,0.7953,1950.2,1950.0,9.9402]
[1742378857442,4.45738213,1950.1,1950.0,9.9402]
[1742378857846,4.45738213,1950.1,1950.0,4.812]
[1742378862798,4.98265034,1950.1,1950.0,4.812]
[1742378863901,10.11064034,1950.1,1949.8,3.0]
[1742378864066,4.45738213,1949.9,1949.7,10.25777]
[1742378864273,4.45738213,1949.8,1949.7,13.25777]
[1742378865795,4.45738213,1949.8,1949.7,8.12882]
[1742378867870,4.99063127,1949.8,1949.6,3.0]
[1742378868072,4.45738213,1949.7,1949.6,3.0]
[1742378868271,4.45738213,1949.7,1949.6,8.12925]
[1742378869080,4.45738213,1949.9,1949.7,5.12899]
[1742378869417,4.45738213,1949.9,1949.8,5.12858]
[1742378870111,0.55,1950.3,1949.7,5.12899]
[1742378870412,1.3788,1950.3,1950.0,5.12809]
[1742378871237,0.8288,1950.3,1950.1,5.12776]
[1742378871411,4.45738213,1950.2,1950.1,5.12776]
[1742378871937,4.45738213,1950.2,1950.0,5.12817]
[1742378872242,4.45738213,1950.1,1950.0,5.12817]
[1742378877702,0.816,1950.5,1950.2,3.0]
[1742378877917,0.816,1950.5,1950.3,5.1273]
[1742378878312,0.816,1950.5,1950.3,5.12728]
[1742378879255,0.816,1950.5,1950.2,13.25523]
[1742378879449,4.45738213,1950.3,1950.2,13.25523]
[1742378879668,4.45738213,1950.3,1950.2,8.12759]
[1742378881455,10.34949213,1950.3,1950.0,8.12807]
[1742378881628,4.45738213,1950.1,1950.0,8.12807]
[1742378883391,6.48825,1950.5,1950.1,8.12774]
[1742378883599,4.45738213,1950.2,1950.1,13.25549]
[1742378883784,4.45738213,1950.2,1950.1,8.12774]
[1742378886164,0.8113,1950.5,1950.2,5.12756]
[1742378886466,4.45738213,1950.3,1950.1,8.12774]
[1742378886665,4.45738213,1950.2,1950.1,8.12774]
[1742378891098,2.673007,1950.2,1950.1,8.12774]
[1742378895382,3.7604077,1950.2,1950.1,3.0]
[1742378896515,3.493107,1950.2,1950.1,3.0]
[1742378897986,2.673007,1950.2,1950.1,8.12794]
[1742378898309,2.673007,1950.2,1950.1,3.0]
[1742378898509,2.673007,1950.2,1950.1,8.12794]
[1742378905430,2.673007,1950.2,1950.1,3.0]
[1742378909330,2.673007,1950.2,1950.1,8.12794]
[1742378909649,2.673007,1950.2,1950.1,3.0]
[1742378910647,2.673007,1950.2,1949.8,7.787]
[1742378910648,5.12805,1950.1,1949.8,7.787]
[1742378910855,2.673007,1949.9,1949.8,7.787]
[1742378911650,2.673007,1949.9,1949.8,12.91573]
[1742378912542,2.673007,1949.9,1949.8,13.74173]
[1742378914154,2.673007,1949.9,1949.8,12.91573]
[1742378917867,2.673007,1949.9,1949.8,13.68803]
[1742378920780,2.673007,1949.9,1949.8,12.91573]
[1742378922897,2.673007,1949.9,1949.8,7.787]
[1742378923105,2.673007,1949.9,1949.8,3.0]
[1742378925425,2.673007,1949.9,1949.8,8.12873]
[1742378927460,2.673007,1950.0,1949.9,8.12846]
[1742378928250,5.346014,1950.0,1949.9,8.12846]
[1742378928455,2.673007,1950.0,1949.9,8.12846]
[1742378929724,5.346014,1950.0,1949.9,8.12846]
[1742378929925,2.673007,1950.0,1949.9,8.12846]
[1742378930256,5.346014,1950.0,1949.9,8.12846]
[1742378930453,2.673007,1950.0,1949.9,8.12846]
[1742378932356,5.346014,1950.0,1949.9,3.0]
[1742378933265,2.673007,1950.0,1949.9,8.12846]
[1742378933757,5.346014,1950.0,1949.9,3.0]
[1742378933939,6.3934274,1950.0,1949.9,3.0]
[1742378934141,7.2090274,1950.0,1949.9,3.0]
[1742378934763,7.27313392,1950.0,1949.9,3.0]
[1742378934964,7.2090274,1950.0,1949.7,9.91583]
[1742378935169,4.5360204,1950.0,1949.8,3.0]
[1742378935375,9.72832774,1950.0,1949.8,3.0]
[1742378935580,0.45360204,1949.9,1949.8,3.0]
[1742378936145,9.6642204,1950.0,1949.8,3.0]
[1742378936464,2.673007,1949.9,1949.8,3.0]
[1742378942676,0.753,1949.8,1949.5,5.12932]
[1742378942863,2.673007,1949.6,1949.5,9.91632]
[1742378943187,2.673007,1949.6,1949.5,12.91632]
[1742378944781,2.673007,1949.6,1949.5,8.12932]
[1742378944967,2.673007,1949.6,1949.5,12.91632]
[1742378945475,2.673007,1949.6,1949.5,7.787]
[1742378945778,2.673007,1949.6,1949.5,4.787]
[1742378947679,2.673007,1949.6,1949.3,3.0]
[1742378947680,5.88692,1949.5,1949.3,3.0]
[1742378947869,5.88692,1949.5,1949.2,5.13024]
[1742378947870,5.346014,1949.4,1949.2,7.787]
[1742378948176,2.673007,1949.3,1949.1,12.91745]
[1742378948377,2.673007,1949.2,1949.1,12.91745]
[1742378948887,2.673007,1949.2,1949.1,3.0]
[1742378952274,8.6668997,1949.2,1949.1,3.0]
[1742378952480,0.55,1949.0,1948.6,5.13172]
[1742378952686,2.673007,1948.7,1948.6,5.13188]
[1742378953101,2.673007,1948.7,1948.5,10.68196]
[1742378953272,2.673007,1948.8,1948.6,3.0]
[1742378953475,2.673007,1948.7,1948.6,3.0]
[1742378953686,2.673007,1948.7,1948.5,6.18150936]
[1742378953891,3.4534287,1948.8,1948.6,3.0]
[1742378955090,4.46238084,1948.7,1948.6,3.0]
[1742378956906,0.7751,1948.6,1948.4,7.789]
[1742378957110,4.46238084,1948.5,1948.4,12.92141]
[1742378957519,4.46238084,1948.5,1948.4,7.789]
[1742378960899,4.46238084,1948.5,1948.4,12.92141]
[1742378963345,4.46238084,1948.5,1948.4,7.789]
[1742378966970,4.46238084,1948.5,1948.3,4.00816219]
[1742378967264,4.90861892,1948.4,1948.3,4.79]
[1742378967770,4.90861892,1948.4,1948.2,7.79]
[1742378968071,4.90861892,1948.4,1948.2,12.92293]
[1742378968226,4.90861892,1948.4,1948.2,3.0]
[1742378968423,4.90861892,1948.4,1948.2,7.79]
[1742378968727,4.90861892,1948.4,1948.2,3.0]
[1742378968929,4.95324273,1948.3,1948.1,23.88363083]
[1742378969169,4.46238084,1948.2,1948.1,23.88363083]
[1742378969325,4.46238084,1948.2,1948.1,18.75058083]
[1742378969664,4.46238084,1948.2,1948.1,26.54058083]
[1742378969870,4.46238084,1948.2,1948.1,25.535]
[1742378970026,4.46238084,1948.2,1948.1,3.01]
[1742378970234,11.97932911,1948.2,1948.1,3.01]
[1742378970955,6.29638911,1948.2,1948.1,3.01]
[1742378971124,4.46238084,1948.2,1948.1,3.01]
[1742378971327,4.46238084,1948.2,1948.1,8.1432]
[1742378972168,0.761,1948.5,1948.1,8.1432]
[1742378972169,4.46238084,1948.3,1948.2,5.13282]
[1742378973680,4.46238084,1948.4,1948.3,8.13241]
[1742378979806,4.46238084,1948.4,1948.3,3.0]
[1742378980007,4.98377892,1948.4,1948.2,9.92281]
[1742378980215,4.46238084,1948.3,1948.2,18.05564]
[1742378981312,4.46238084,1948.3,1948.2,12.92281]
[1742378983431,4.46238084,1948.3,1948.2,8.13281]
[1742378994057,5.27388084,1948.3,1948.2,8.13281]
[1742378994356,4.98976892,1948.3,1948.2,8.13281]
[1742378994553,4.46238084,1948.3,1948.2,8.13281]
[1742378996459,0.768,1948.2,1948.1,3.01]
[1742378996767,4.46238084,1948.2,1948.1,8.1432]
[1742378999031,4.46238084,1948.3,1948.2,5.13268]
[1742379003777,4.85770251,1948.5,1948.3,5.13252]
[1742379003977,5.25578084,1948.6,1948.4,5.13241]
[1742379004196,0.52557808,1948.5,1948.4,5.13241]
[1742379004363,4.46238084,1948.6,1948.5,5.13215]
[1742379005196,5.64485672,1948.8,1948.6,5.13178]
[1742379005600,5.64485672,1948.8,1948.6,10.26351]
[1742379005798,4.46238084,1948.8,1948.7,5.13162]
[1742379006098,0.8221,1949.1,1948.8,5.13136]
[1742379006311,4.46238084,1948.9,1948.8,5.13136]
[1742379009807,0.8221,1949.1,1948.9,5.13096]
[1742379010012,4.46238084,1949.0,1948.9,8.13096]
[1742379012991,0.7918,1949.3,1949.0,5.13066]
[1742379013326,4.46238084,1949.1,1948.9,8.13099]
[1742379013525,4.46238084,1949.0,1948.9,8.13099]
[1742379016727,5.29048084,1949.0,1948.9,3.0]
[1742379017227,5.29048084,1949.0,1948.8,4.79]
[1742379017525,4.46238084,1948.9,1948.8,4.79]
[1742379018591,4.46238084,1948.9,1948.8,9.92136]
[1742379019095,4.46238084,1948.9,1948.8,4.79]
[1742379019532,4.46238084,1948.9,1948.8,9.92136]
[1742379019895,4.46238084,1948.9,1948.7,5.13147]
[1742379020097,4.46238084,1948.9,1948.7,9.92047]
[1742379020293,4.46238084,1948.9,1948.7,4.789]
[1742379020492,4.46238084,1948.8,1948.7,7.789]
[1742379020737,4.46238084,1948.8,1948.7,3.0]
[1742379021037,4.46238084,1948.8,1948.7,7.789]
[1742379022028,4.46238084,1948.8,1948.7,3.0]
[1742379022535,4.46238084,1948.8,1948.7,8.13162]
[1742379024341,4.46238084,1948.8,1948.7,3.0]
[1742379024539,4.46238084,1948.8,1948.7,8.13162]
[1742379024698,4.46238084,1948.9,1948.7,13.26298]
[1742379025099,4.46238084,1948.9,1948.8,5.13136]
[1742379025742,4.46238084,1948.9,1948.7,13.26281]
[1742379025903,4.46238084,1948.9,1948.7,8.13136]
[1742379026242,4.46238084,1948.9,1948.7,13.26279]
[1742379026413,4.46238084,1948.9,1948.8,5.13136]
[1742379029131,2.67654513,1948.9,1948.8,10.26272]
[1742379029336,2.67654513,1948.9,1948.8,5.13136]
[1742379033040,0.38678124,1949.2,1948.9,5.13093]
[1742379033244,2.67654513,1949.0,1948.9,5.13093]
[1742379033415,2.67654513,1949.0,1948.9,8.13093]
[1742379037125,4.46042015,1949.0,1948.9,13.26193]
[1742379037749,4.46042015,1949.0,1948.9,8.13093]
[1742379042930,4.46042015,1949.0,1948.9,3.0]
[1742379043130,4.46042015,1949.0,1948.8,10.26253]
[1742379043463,4.46042015,1948.9,1948.8,13.26253]
[1742379043625,4.46042015,1948.9,1948.8,3.0]
[1742379055697,5.13139,1948.8,1948.4,5.94698]
[1742379055876,9.59181015,1948.8,1948.5,8.13215]
[1742379056077,14.72336015,1948.8,1948.5,3.0]
[1742379056798,4.46042015,1948.6,1948.5,8.13215]
[1742379057791,4.46042015,1948.6,1948.5,3.0]
[1742379058295,4.46042015,1948.6,1948.5,8.13215]
[1742379058600,5.90154,1948.9,1948.5,8.13215]
[1742379058601,4.46042015,1948.9,1948.8,5.1313]
[1742379058903,4.46042015,1948.9,1948.8,8.1313]
[1742379059088,2.67651398,1948.9,1948.8,8.1313]
[1742379062707,2.67651398,1948.9,1948.8,3.0]
[1742379063594,2.67651398,1948.9,1948.8,8.13136]
[1742379064828,2.67651398,1948.9,1948.8,3.0]
[1742379065329,2.67651398,1948.9,1948.8,8.13136]
[1742379069794,2.67651398,1948.9,1948.8,3.0]
[1742379070494,11.51136936,1948.9,1948.8,3.0]
[1742379071392,6.38027936,1948.9,1948.8,3.0]
[1742379071596,6.38027936,1948.9,1948.6,9.91975]
[1742379071934,2.67651398,1948.7,1948.6,12.91975]
[1742379073554,2.67651398,1948.7,1948.6,8.13175]
[1742379074734,2.67651398,1948.7,1948.6,3.0]
[1742379075844,2.67651398,1948.7,1948.6,8.13188]
[1742379077117,2.67651398,1948.7,1948.6,3.0]
[1742379078683,0.3912329,1949.2,1948.7,0.8067]
[1742379078842,11.02385,1949.3,1948.9,5.13098]
[1742379079380,11.02386,1949.3,1948.9,5.13098]
[1742379079870,5.89364,1949.3,1948.9,5.13098]
[1742379080071,2.67651398,1949.0,1948.9,5.13098]
[1742379082848,3.49091398,1949.0,1948.6,4.03363851]
[1742379083048,2.67651398,1948.7,1948.6,12.91979]
[1742379083580,2.67651398,1948.7,1948.6,8.13179]
[1742379083739,2.67651398,1948.7,1948.6,5.13179]
[1742379085247,4.46188147,1948.7,1948.6,5.13179]
[1742379091602,4.46188147,1948.7,1948.5,9.92011]
[1742379091899,0.8144,1949.0,1948.5,12.92011]
[1742379091900,4.46188147,1948.6,1948.5,12.92011]
[1742379092198,4.46188147,1948.6,1948.5,5.13211]
[1742379094218,4.8468697,1948.6,1948.5,5.13211]
[1742379095587,10.7461497,1948.6,1948.2,5.1328]
[1742379095923,5.28478147,1948.3,1948.1,0.01]
[1742379096083,4.46188147,1948.2,1948.1,3.01]
[1742379096280,4.46188147,1948.2,1948.1,0.01]
[1742379096820,4.46188147,1948.2,1948.1,3.01]
[1742379097199,4.46188147,1948.2,1948.1,8.1432]
[1742379097519,4.84096817,1948.2,1948.1,8.1432]
[1742379099430,4.84096817,1948.2,1948.1,3.01]
[1742379099612,5.32506499,1948.2,1948.1,3.01]
[1742379099919,5.32506499,1948.2,1948.1,0.01]
[1742379100100,10.45800499,1948.2,1948.1,0.01]
[1742379102336,5.32506499,1948.2,1948.1,0.01]
[1742379103724,10.52217489,1948.2,1948.1,0.01]
[1742379103901,10.45800499,1948.2,1948.1,0.01]
[1742379105734,0.812,1948.1,1947.7,3.0]
[1742379105933,4.46188147,1947.8,1947.6,13.26875]
[1742379106133,4.46188147,1947.7,1947.6,13.26875]
[1742379106309,4.46188147,1947.7,1947.6,5.13432]
[1742379106633,4.46188147,1947.7,1947.6,8.13432]
[1742379106797,4.46188147,1947.8,1947.7,5.13417]
[1742379110065,4.46188147,1947.8,1947.6,8.13432]
[1742379110221,4.46188147,1947.7,1947.6,8.13432]
[1742379111254,4.46188147,1947.7,1947.5,5.13477]
[1742379111449,4.46188147,1947.6,1947.5,8.13477]
[1742379112763,4.84643153,1947.6,1947.5,8.13477]
[1742379114371,0.38455006,1947.6,1947.5,8.13477]
[1742379114672,4.46188147,1947.6,1947.5,3.0]
[1742379114836,5.42150362,1947.6,1947.5,3.0]
[1742379115039,4.46188147,1947.6,1947.5,3.0]
[1742379115240,4.84664628,1947.6,1947.5,3.0]
[1742379118902,0.38476481,1947.6,1947.5,8.13478]
[1742379119071,4.46188147,1947.7,1947.5,13.26956]
[1742379119266,4.46188147,1947.7,1947.6,3.0]
[1742379119462,4.46188147,1947.7,1947.6,8.13452]
[1742379122890,4.85492591,1947.7,1947.6,8.13452]
[1742379123206,4.85492591,1947.7,1947.6,3.0]
[1742379123806,4.85492591,1947.7,1947.6,8.13452]
[1742379127101,3.07312805,1947.7,1947.6,8.13452]
[1742379145127,2.68008361,1947.7,1947.6,8.13452]
[1742379146629,6.40567558,1947.7,1947.6,3.0]
[1742379147033,11.53993558,1947.7,1947.6,3.0]
[1742379147196,11.92567522,1947.7,1947.6,3.0]
[1742379147598,11.92567522,1947.7,1947.6,2.77201088]
[1742379148432,11.92567522,1947.7,1947.6,2.23011088]
[1742379148599,11.92567522,1947.7,1947.6,1.62311088]
[1742379149005,5.13455,1947.6,1947.3,9.92531]
[1742379149224,2.68008361,1947.4,1947.3,9.92531]
[1742379149735,2.68008361,1947.6,1947.4,5.13489]
[1742379150601,2.68008361,1947.5,1947.4,5.13489]
[1742379151002,2.68008361,1947.5,1947.4,8.13489]
[1742379153440,2.68008361,1947.5,1947.4,3.0]
[1742379154143,3.21610033,1947.5,1947.4,3.0]
[1742379155037,8.35088033,1947.5,1947.4,3.0]
[1742379155223,9.11348033,1947.5,1947.4,3.0]
[1742379155626,3.97870033,1947.5,1947.4,3.0]
[1742379157044,9.11348033,1947.5,1947.4,3.0]
[1742379160541,3.97870033,1947.5,1947.4,3.0]
[1742379162228,3.21610033,1947.5,1947.4,3.0]
[1742379164418,9.17007137,1947.5,1947.1,5.13574]
[1742379164717,2.68008361,1947.2,1947.0,16.59877942]
[1742379165017,2.68008361,1947.1,1947.0,16.59877942]
[1742379165440,2.68008361,1947.1,1947.0,15.82955]
[1742379166565,2.68008361,1947.1,1947.0,18.82955]
[1742379167257,4.46927729,1947.1,1947.0,18.82955]
[1742379168251,4.46927729,1947.1,1947.0,3.0]
[1742379168555,4.46927729,1947.1,1947.0,7.79]
[1742379169259,4.46927729,1947.1,1947.0,12.9261]
[1742379171753,0.778,1947.5,1947.1,3.0]
[1742379172067,0.778,1947.5,1947.3,3.0]
[1742379172967,5.91279,1947.5,1947.3,3.0]
[1742379173630,4.46927729,1947.4,1947.3,3.0]
[1742379180999,4.46927729,1947.4,1947.3,8.13531]
[1742379181400,0.38573964,1947.7,1947.5,8.13469]
[1742379181571,5.134,1947.8,1947.5,8.13469]
[1742379181984,6.45595,1947.9,1947.5,8.13469]
[1742379182190,6.71935135,1947.9,1947.5,8.13469]
[1742379182389,11.85327135,1947.9,1947.5,8.13469]
[1742379182590,13.48552621,1947.9,1947.5,8.13469]
[1742379183095,8.35160621,1947.9,1947.5,8.13469]
[1742379183402,5.13403,1947.8,1947.5,8.13469]
[1742379183597,4.46927729,1947.6,1947.5,8.13469]
[1742379183799,1.03550135,1947.9,1947.6,5.13447]
[1742379184003,4.46927729,1947.7,1947.6,8.13447]
[1742379185411,4.46927729,1947.8,1947.7,8.94217]
[1742379185575,4.84889562,1948.0,1947.8,8.13386]
[1742379185779,4.72845806,1948.0,1947.8,13.26771]
[1742379185975,4.72845806,1948.0,1947.8,8.13385]
[1742379186183,4.72845806,1948.0,1947.8,8.13382]
[1742379188310,4.72845806,1948.0,1947.8,13.26764]
[1742379188468,4.72845806,1948.0,1947.8,8.13382]
[1742379188669,4.46927729,1947.9,1947.8,8.13382]
[1742379191524,4.46927729,1947.9,1947.8,12.92282]
[1742379193631,4.46927729,1947.9,1947.8,13.68532]
[1742379195346,4.46927729,1948.1,1948.0,8.13347]
[1742379195701,4.46927729,1948.1,1948.0,8.90987]
[1742379200751,4.46927729,1948.1,1948.0,9.94547402]
[1742379202564,4.46927729,1948.1,1948.0,13.95707402]
[1742379204244,4.46927729,1948.1,1948.0,9.16907402]
[1742379204448,4.46927729,1948.1,1948.0,13.95707402]
[1742379206489,4.91620502,1948.1,1948.0,7.788]
[1742379207127,4.91620502,1948.1,1948.0,12.92147]
[1742379210362,4.46927729,1948.1,1948.0,12.92147]
[1742379213168,2.67909807,1948.1,1948.0,12.92147]
[1742379216852,2.67909807,1948.1,1948.0,7.788]
[1742379217939,8.62706286,1948.1,1948.0,3.0]
[1742379218139,8.56289807,1948.1,1948.0,3.0]
[1742379218341,10.20039168,1948.1,1948.0,3.0]
[1742379218640,15.33379168,1948.1,1947.7,9.92116]
[1742379218842,2.67909807,1947.8,1947.7,12.92116]
[1742379220373,2.67909807,1947.8,1947.7,13.40207171]
[1742379221175,4.46582165,1947.8,1947.7,13.40207171]
[1742379227654,4.46582165,1947.8,1947.7,12.92116]
[1742379230519,4.46582165,1947.8,1947.7,13.40175227]
[1742379231978,4.46582165,1947.8,1947.7,12.92116]
[1742379242060,4.46582165,1947.8,1947.7,13.40204212]